bitfinex/quotes_BTCUSD_20240623
["timestamp","ask_amount","ask_price","bid_price","bid_amount"]
[1719123467038,0.37069481,64488.0,64487.0,0.13894171]
[1719123468027,0.3145702,64488.0,64487.0,0.13894171]
[1719123468206,0.3706783,64488.0,64487.0,0.13894171]
[1719123470310,0.37060896,64488.0,64487.0,0.13894171]
[1719123470620,0.23084083,64488.0,64487.0,0.13894171]
[1719123470825,0.37060698,64488.0,64487.0,0.13894171]
[1719123471000,0.23084083,64488.0,64487.0,0.13894171]
[1719123472041,0.23073054,64488.0,64487.0,0.13894171]
[1719123473483,0.23073663,64488.0,64487.0,0.13894171]
[1719123476547,0.17479575,64488.0,64487.0,0.13894171]
[1719123476772,0.23052344,64488.0,64487.0,0.13894171]
[1719123479608,0.17479575,64488.0,64487.0,0.13894171]
[1719123479830,0.23043872,64488.0,64487.0,0.13894171]
[1719123480035,0.17479575,64488.0,64487.0,0.13894171]
[1719123480196,0.37019707,64488.0,64487.0,0.13894171]
[1719123482056,0.37019791,64488.0,64487.0,0.13894171]
[1719123482632,0.23043872,64488.0,64487.0,0.13894171]
[1719123484794,0.37019791,64488.0,64487.0,0.13894171]
[1719123484998,0.17479575,64488.0,64487.0,0.13894171]
[1719123485206,0.23049769,64488.0,64487.0,0.13894171]
[1719123486643,0.37025718,64488.0,64487.0,0.13894171]
[1719123487046,0.23049769,64488.0,64487.0,0.13894171]
[1719123487449,0.37025718,64488.0,64487.0,0.13894171]
[1719123488317,0.36956979,64488.0,64487.0,0.13894171]
[1719123488741,0.36957025,64488.0,64487.0,0.13894171]
[1719123489707,0.17479575,64488.0,64487.0,0.13894171]
[1719123490062,0.36956585,64488.0,64487.0,0.13894171]
[1719123491414,0.36950178,64488.0,64487.0,0.13894171]
[1719123494334,0.17479575,64488.0,64487.0,0.13894171]
[1719123494546,0.36961193,64488.0,64487.0,0.13894171]
[1719123497598,0.36911064,64488.0,64487.0,0.13894171]
[1719123497952,0.17479575,64488.0,64487.0,0.13894171]
[1719123498163,0.36911279,64488.0,64487.0,0.13894171]
[1719123498366,0.22933367,64488.0,64487.0,0.13894171]
[1719123498783,0.36911577,64488.0,64487.0,0.13894171]
[1719123500003,0.36911577,64488.0,64487.0,0.12628615]
[1719123500441,0.22933367,64488.0,64487.0,0.12628615]
[1719123500648,0.17479575,64488.0,64487.0,0.12628615]
[1719123500793,0.22937581,64488.0,64487.0,0.12628615]
[1719123501198,0.36916445,64488.0,64487.0,0.12628615]
[1719123501620,0.22937581,64488.0,64487.0,0.12628615]
[1719123503655,0.22944406,64488.0,64487.0,0.12628615]
[1719123505937,0.53957906,64488.0,64487.0,0.12628615]
[1719123506668,0.49459494,64488.0,64487.0,0.12628615]
[1719123506841,0.53944235,64488.0,64487.0,0.12628615]
[1719123507343,0.53944241,64488.0,64487.0,0.12628615]
[1719123509853,0.53944384,64488.0,64487.0,0.12628615]
[1719123512951,0.53939231,64488.0,64487.0,0.12628615]
[1719123514695,0.53939231,64488.0,64487.0,0.12628615]
[1719123514890,0.53937894,64488.0,64487.0,0.12628615]
[1719123516019,0.53938112,64488.0,64487.0,0.12628615]
[1719123516464,0.49459494,64488.0,64487.0,0.12628615]
[1719123516625,0.53938112,64488.0,64487.0,0.12628615]
[1719123516819,0.53938112,64488.0,64487.0,0.13788706]
[1719123517031,0.53938112,64488.0,64487.0,0.12628615]
[1719123517292,0.53938112,64488.0,64487.0,0.13788706]
[1719123517415,0.53938112,64488.0,64487.0,0.12628615]
[1719123517611,0.53938508,64488.0,64487.0,0.13788706]
[1719123517842,0.53938508,64488.0,64487.0,0.12628615]
[1719123519474,0.53938508,64488.0,64487.0,0.13788706]
[1719123519713,0.53938508,64488.0,64487.0,0.12628615]
[1719123519928,0.53938508,64488.0,64487.0,0.13788706]
[1719123522361,0.53941978,64488.0,64487.0,0.13788706]
[1719123524121,0.07421578,64488.0,64487.0,0.13788706]
[1719123525633,0.01972675,64488.0,64487.0,0.13788706]
[1719123525812,0.06490549,64488.0,64487.0,0.13788706]
[1719123526011,0.07456968,64488.0,64487.0,0.13788706]
[1719123526788,0.01972675,64488.0,64487.0,0.13788706]
[1719123526989,0.07476604,64488.0,64487.0,0.13788706]
[1719123528362,0.01972675,64488.0,64487.0,0.13788706]
[1719123529309,0.07572076,64488.0,64487.0,0.13788706]
[1719123529513,0.02954965,64488.0,64487.0,0.13788706]
[1719123530473,0.07572076,64488.0,64487.0,0.13788706]
[1719123534982,0.02954965,64488.0,64487.0,0.13788706]
[1719123536641,0.01972675,64488.0,64487.0,0.13788706]
[1719123551170,0.07617719,64488.0,64487.0,0.13788706]
[1719123551391,0.07617733,64488.0,64487.0,0.13788706]
[1719123552738,0.21598251,64488.0,64487.0,0.13788706]
[1719123553264,0.07617733,64488.0,64487.0,0.13788706]
[1719123554543,0.07591762,64488.0,64487.0,0.13788706]
[1719123556273,0.07584503,64488.0,64487.0,0.13788706]
[1719123560640,0.07610113,64488.0,64487.0,0.13788706]
[1719123563731,0.07612249,64488.0,64487.0,0.13788706]
[1719123563964,0.01972675,64488.0,64487.0,0.13788706]
[1719123564219,0.0297595,64488.0,64487.0,0.13788706]
[1719123564450,0.07612971,64488.0,64487.0,0.13788706]
[1719123565326,0.07613157,64488.0,64487.0,0.13788706]
[1719123566646,0.01972675,64488.0,64487.0,0.13788706]
[1719123566997,0.02975713,64488.0,64487.0,0.13788706]
[1719123567222,0.07612509,64488.0,64487.0,0.13788706]
[1719123569790,0.01972675,64488.0,64487.0,0.13788706]
[1719123570019,0.02975768,64488.0,64487.0,0.13788706]
[1719123570259,0.07612616,64488.0,64487.0,0.13788706]
[1719123572778,0.01972675,64488.0,64487.0,0.13788706]
[1719123572974,0.02980998,64488.0,64487.0,0.13788706]
[1719123573203,0.01972675,64488.0,64487.0,0.12105591]
[1719123573406,0.02980998,64488.0,64487.0,0.13788706]
[1719123573631,0.07622827,64488.0,64487.0,0.13788706]
[1719123575971,0.06617587,64488.0,64487.0,0.13788706]
[1719123576177,0.07629147,64488.0,64487.0,0.13788706]
[1719123579189,0.07623484,64488.0,64487.0,0.13788706]
[1719123582314,0.07630299,64488.0,64487.0,0.13788706]
[1719123582672,0.06618616,64488.0,64487.0,0.13788706]
[1719123582886,0.0763127,64488.0,64487.0,0.13788706]
[1719123583930,0.07629524,64488.0,64487.0,0.13788706]
[1719123585020,0.1,64492.0,64487.0,0.13788706]
[1719123585219,0.13977428,64489.0,64487.0,0.13788706]
[1719123585424,0.04642769,64488.0,64487.0,0.13788706]
[1719123585625,0.05652093,64488.0,64487.0,0.13788706]
[1719123586525,0.05652093,64488.0,64487.0,0.14788706]
[1719123586764,0.05652093,64488.0,64487.0,0.13388706]
[1719123587125,0.05652093,64488.0,64487.0,0.12388706]
[1719123587282,0.05652093,64488.0,64487.0,0.13788706]
[1719123587892,0.05652093,64488.0,64487.0,0.12388706]
[1719123588094,0.05652093,64488.0,64487.0,0.10988706]
[1719123588292,0.155061,64491.0,64490.0,0.01683115]
[1719123588492,0.20507197,64491.0,64490.0,0.01705115]
[1719123588813,0.05001097,64491.0,64490.0,0.02775957]
[1719123589156,0.05001097,64491.0,64490.0,0.0170104]
[1719123590950,0.05001097,64491.0,64490.0,0.1135104]
[1719123591151,0.05001097,64491.0,64490.0,0.1275104]
[1719123591414,0.12232204,64492.0,64490.0,0.1275104]
[1719123591634,0.26210118,64492.0,64491.0,0.0167904]
[1719123591809,0.31211409,64492.0,64491.0,0.02775955]
[1719123591973,0.31212193,64492.0,64491.0,0.0170104]
[1719123593164,0.31237406,64492.0,64491.0,0.0170104]
[1719123593835,0.31237406,64492.0,64491.0,0.02775955]
[1719123594184,0.31237406,64492.0,64491.0,0.04175955]
[1719123594443,0.26210902,64492.0,64491.0,0.04175955]
[1719123594658,0.31273984,64492.0,64491.0,0.04175955]
[1719123594860,0.31273984,64492.0,64491.0,0.05575955]
[1719123597320,0.31275929,64492.0,64491.0,0.05575955]
[1719123597498,0.17299386,64492.0,64491.0,0.05575955]
[1719123597694,0.17299387,64492.0,64491.0,0.05575955]
[1719123597928,0.17316326,64492.0,64491.0,0.05575955]
[1719123600588,0.12232204,64492.0,64491.0,0.05575955]
[1719123600795,0.17301697,64492.0,64491.0,0.05575955]
[1719123603234,0.12232204,64492.0,64491.0,0.05575955]
[1719123603434,0.17290541,64492.0,64491.0,0.05575955]
[1719123606043,0.32796241,64492.0,64491.0,0.05575955]
[1719123606245,0.32790682,64492.0,64491.0,0.05575955]
[1719123607072,0.32790682,64492.0,64491.0,0.03896915]
[1719123607280,0.32790682,64492.0,64491.0,0.05575955]
[1719123609209,0.27737904,64492.0,64491.0,0.05575955]
[1719123609414,0.32793251,64492.0,64491.0,0.05575955]
[1719123609620,0.27737904,64492.0,64491.0,0.05575955]
[1719123609820,0.32791673,64492.0,64491.0,0.05575955]
[1719123610871,0.27737904,64492.0,64491.0,0.05575955]
[1719123611052,0.32788518,64492.0,64491.0,0.05575955]
[1719123612646,0.32801837,64492.0,64491.0,0.05575955]
[1719123615711,0.32797047,64492.0,64491.0,0.05575955]
[1719123618464,0.27737904,64492.0,64491.0,0.05575955]
[1719123618672,0.32791153,64492.0,64491.0,0.05575955]
[1719123619016,0.32786994,64492.0,64491.0,0.05575955]
[1719123621737,0.31812849,64492.0,64491.0,0.05575955]
[1719123621978,0.32779289,64492.0,64491.0,0.05575955]
[1719123623270,0.32779289,64492.0,64491.0,0.03896915]
[1719123623671,0.32779289,64492.0,64491.0,0.05575955]
[1719123624677,0.63788369,64492.0,64491.0,0.05575955]
[1719123625493,0.63873369,64492.0,64491.0,0.05575955]
[1719123625891,0.63873369,64492.0,64491.0,0.0450104]
[1719123626296,0.77849048,64492.0,64491.0,0.0450104]
[1719123627716,0.72810083,64492.0,64491.0,0.0450104]
[1719123627892,0.77849292,64492.0,64491.0,0.0450104]
[1719123628112,0.62907091,64492.0,64491.0,0.0450104]
[1719123628318,0.77849937,64492.0,64491.0,0.0450104]
[1719123629373,0.7785054,64492.0,64491.0,0.0450104]
[1719123629592,0.69063531,64492.0,64491.0,0.02822]
[1719123629806,0.69063531,64492.0,64491.0,0.0450104]
[1719123630785,0.68018266,64492.0,64491.0,0.0450104]
[1719123630994,0.68984658,64492.0,64491.0,0.0450104]
[1719123633773,0.64024404,64492.0,64491.0,0.0450104]
[1719123633992,0.68973286,64492.0,64491.0,0.0450104]
[1719123635220,0.99984786,64492.0,64491.0,0.0450104]
[1719123636674,0.99984786,64492.0,64491.0,0.02822]
[1719123636823,0.99989496,64492.0,64491.0,0.0450104]
[1719123637226,0.95035904,64492.0,64491.0,0.0450104]
[1719123637454,0.99989497,64492.0,64491.0,0.0450104]
[1719123639938,0.95035904,64492.0,64491.0,0.0450104]
[1719123640149,0.99989666,64492.0,64491.0,0.02822]
[1719123640601,0.99989666,64492.0,64491.0,0.0450104]
[1719123643035,0.99991912,64492.0,64491.0,0.0450104]
[1719123646016,0.95035904,64492.0,64491.0,0.0450104]
[1719123646218,0.99988404,64492.0,64491.0,0.0450104]
[1719123646430,0.95035904,64492.0,64491.0,0.0450104]
[1719123646624,0.99988404,64492.0,64491.0,0.0450104]
[1719123649113,0.95035904,64492.0,64491.0,0.02822]
[1719123649328,0.99993972,64492.0,64491.0,0.02822]
[1719123650533,0.99993972,64492.0,64491.0,0.0450104]
[1719123651019,0.99993972,64492.0,64491.0,0.02822]
[1719123652341,0.99991618,64492.0,64491.0,0.02822]
[1719123653380,0.69213783,64492.0,64491.0,0.02822]
[1719123653582,0.69213783,64492.0,64491.0,0.0450104]
[1719123653937,0.84719483,64492.0,64491.0,0.0450104]
[1719123654970,0.84719483,64492.0,64491.0,0.02822]
[1719123655386,0.84719629,64492.0,64491.0,0.02822]
[1719123655827,0.80730173,64492.0,64491.0,0.02822]
[1719123656034,0.84719629,64492.0,64491.0,0.02822]
[1719123656835,0.94719629,64492.0,64491.0,0.02822]
[1719123657065,0.94719557,64492.0,64491.0,0.02822]
[1719123657495,0.94699783,64492.0,64491.0,0.02822]
[1719123658373,0.97576992,64492.0,64491.0,0.02822]
[1719123658589,0.97557814,64492.0,64491.0,0.02822]
[1719123659008,0.97557814,64492.0,64491.0,0.0459454]
[1719123659219,0.97557814,64492.0,64491.0,0.029155]
[1719123659664,0.97557814,64492.0,64491.0,0.0459454]
[1719123663607,0.97557814,64492.0,64491.0,0.029155]
[1719123663816,0.97557814,64492.0,64491.0,0.0459454]
[1719123663970,0.96605768,64492.0,64491.0,0.0459454]
[1719123664146,0.97572172,64492.0,64491.0,0.0459454]
[1719123664370,0.97572173,64492.0,64491.0,0.0459454]
[1719123667129,0.97568611,64492.0,64491.0,0.0459454]
[1719123668955,0.97568611,64492.0,64491.0,0.029155]
[1719123670011,0.92640978,64492.0,64491.0,0.029155]
[1719123670213,0.97568609,64492.0,64491.0,0.029155]
[1719123670600,0.97568609,64492.0,64491.0,0.0459454]
[1719123672540,0.92378609,64492.0,64491.0,0.0459454]
[1719123673143,0.92399531,64492.0,64491.0,0.0459454]
[1719123673579,0.92426812,64492.0,64491.0,0.0459454]
[1719123674712,0.9239863,64492.0,64491.0,0.0459454]
[1719123676018,0.9239863,64492.0,64491.0,0.1252454]
[1719123676248,0.91432169,64492.0,64491.0,0.1252454]
[1719123676481,0.92398568,64492.0,64491.0,0.1252454]
[1719123676932,0.61387068,64492.0,64491.0,0.1252454]
[1719123679123,0.56439478,64492.0,64491.0,0.1252454]
[1719123679359,0.6139156,64492.0,64491.0,0.1252454]
[1719123682415,0.61390955,64492.0,64491.0,0.1252454]
[1719123682689,0.60424558,64492.0,64491.0,0.1252454]
[1719123682889,0.61398584,64492.0,64491.0,0.1252454]
[1719123683976,0.61400285,64492.0,64491.0,0.1252454]
[1719123685333,0.61385113,64492.0,64491.0,0.1252454]
[1719123688435,0.61381,64492.0,64491.0,0.1252454]
[1719123689187,0.61381,64492.0,64491.0,0.108455]
[1719123690228,0.61381,64492.0,64491.0,0.1252454]
[1719123691319,0.56439478,64492.0,64491.0,0.1252454]
[1719123691610,0.61365424,64492.0,64491.0,0.1252454]
[1719123691822,0.56439478,64492.0,64491.0,0.1252454]
[1719123692029,0.61365508,64492.0,64491.0,0.1252454]
[1719123694488,0.61362513,64492.0,64491.0,0.1252454]
[1719123700566,0.56439478,64492.0,64491.0,0.1252454]
[1719123700767,0.61362058,64492.0,64491.0,0.1252454]
[1719123700967,0.56439478,64492.0,64491.0,0.1252454]
[1719123701169,0.61362058,64492.0,64491.0,0.1252454]
[1719123702301,0.56439478,64492.0,64491.0,0.1252454]
[1719123702502,0.61362201,64492.0,64491.0,0.1252454]
[1719123703924,0.61364047,64492.0,64491.0,0.1252454]
[1719123706962,0.6136396,64492.0,64491.0,0.1252454]
[1719123709969,0.57405873,64492.0,64491.0,0.1252454]
[1719123710177,0.61363685,64492.0,64491.0,0.1252454]
[1719123710354,0.56439478,64492.0,64491.0,0.1252454]
[1719123710585,0.61360267,64492.0,64491.0,0.1252454]
[1719123711614,0.61360707,64492.0,64491.0,0.1252454]
[1719123713158,0.61360584,64492.0,64491.0,0.1252454]
[1719123714165,0.61356465,64492.0,64491.0,0.1252454]
[1719123714318,0.92367965,64492.0,64491.0,0.1252454]
[1719123716191,0.92367212,64492.0,64491.0,0.1252454]
[1719123717684,0.92367206,64492.0,64491.0,0.1252454]
[1719123718776,0.92367206,64492.0,64491.0,0.108455]
[1719123719009,0.92367206,64492.0,64491.0,0.1252454]
[1719123719428,0.92366266,64492.0,64491.0,0.1252454]
[1719123719839,0.91399871,64492.0,64491.0,0.1252454]
[1719123720064,0.92366266,64492.0,64491.0,0.1252454]
[1719123721114,0.9236884,64492.0,64491.0,0.1252454]
[1719123723247,0.9236884,64492.0,64491.0,0.108455]
[1719123723471,0.9236884,64492.0,64491.0,0.1252454]
[1719123724681,0.87450978,64492.0,64491.0,0.1252454]
[1719123724890,0.92369068,64492.0,64491.0,0.1252454]
[1719123727682,0.92369068,64492.0,64491.0,0.108455]
[1719123727892,0.87450978,64492.0,64491.0,0.1252454]
[1719123728119,0.92379062,64492.0,64491.0,0.1252454]
[1719123728366,0.9141303,64492.0,64491.0,0.1252454]
[1719123728577,0.92379425,64492.0,64491.0,0.1252454]
[1719123731085,0.92381132,64492.0,64491.0,0.1252454]
[1719123733883,0.87450978,64492.0,64491.0,0.108455]
[1719123734090,0.92381687,64492.0,64491.0,0.108455]
[1719123734693,0.92381687,64492.0,64491.0,0.1252454]
[1719123734903,0.92381687,64492.0,64491.0,0.108455]
[1719123737261,0.92378742,64492.0,64491.0,0.108455]
[1719123737638,0.92378743,64492.0,64491.0,0.108455]
[1719123738272,0.92378743,64492.0,64491.0,0.1252454]
[1719123738505,0.92378743,64492.0,64491.0,0.108455]
[1719123738707,0.92378743,64492.0,64491.0,0.1252454]
[1719123739110,0.92378743,64492.0,64491.0,0.108455]
[1719123739432,0.92378743,64492.0,64491.0,0.1252454]
[1719123740240,0.92386277,64492.0,64491.0,0.1252454]
[1719123743419,0.92388937,64492.0,64491.0,0.1252454]
[1719123744378,0.92388937,64492.0,64491.0,0.108455]
[1719123744826,0.92388937,64492.0,64491.0,0.1252454]
[1719123746333,0.92388937,64492.0,64491.0,0.108455]
[1719123746552,0.92391212,64492.0,64491.0,0.108455]
[1719123746790,0.92391212,64492.0,64491.0,0.1252454]
[1719123747001,0.9142319,64492.0,64491.0,0.1252454]
[1719123747216,0.92389585,64492.0,64491.0,0.1252454]
[1719123748097,0.92389585,64492.0,64491.0,0.108455]
[1719123748310,0.92389585,64492.0,64491.0,0.1252454]
[1719123748527,0.92389585,64492.0,64491.0,0.108455]
[1719123749609,0.92366465,64492.0,64491.0,0.1252454]
[1719123751797,0.92366465,64492.0,64491.0,0.108455]
[1719123752042,0.92366465,64492.0,64491.0,0.1252454]
[1719123752251,0.92366465,64492.0,64491.0,0.108455]
[1719123752488,0.92367505,64492.0,64491.0,0.1252454]
[1719123753504,0.92367505,64492.0,64491.0,0.108455]
[1719123754435,0.92367505,64492.0,64491.0,0.1252454]
[1719123755419,0.92363417,64492.0,64491.0,0.1252454]
[1719123755887,0.92363748,64492.0,64491.0,0.1252454]
[1719123756563,0.79812979,64492.0,64491.0,0.1252454]
[1719123756786,0.95318679,64492.0,64491.0,0.1252454]
[1719123758565,0.90405909,64492.0,64491.0,0.1252454]
[1719123758916,0.95315854,64492.0,64491.0,0.1252454]
[1719123761727,0.95330255,64492.0,64491.0,0.1252454]
[1719123764650,0.90405909,64492.0,64491.0,0.1252454]
[1719123764908,0.95330216,64492.0,64491.0,0.1252454]
[1719123765242,0.90405909,64492.0,64491.0,0.1252454]
[1719123765427,0.95330217,64492.0,64491.0,0.1252454]
[1719123766355,0.9533021,64492.0,64491.0,0.1252454]
[1719123767955,0.91372304,64492.0,64491.0,0.1252454]
[1719123768174,0.95331191,64492.0,64491.0,0.1252454]
[1719123770944,0.90405909,64492.0,64491.0,0.1252454]
[1719123771201,0.95331353,64492.0,64491.0,0.1252454]
[1719123774384,0.94364958,64492.0,64491.0,0.1252454]
[1719123774528,0.9533202,64492.0,64491.0,0.1252454]
[1719123774977,0.6432052,64492.0,64491.0,0.1252454]
[1719123776941,0.64320229,64492.0,64491.0,0.1252454]
[1719123777742,0.59394409,64492.0,64491.0,0.1252454]
[1719123777964,0.64320237,64492.0,64491.0,0.1252454]
[1719123780268,0.63280115,64492.0,64491.0,0.1252454]
[1719123780515,0.6424651,64492.0,64491.0,0.1252454]
[1719123782560,0.64246651,64492.0,64491.0,0.1252454]
[1719123787674,0.64331651,64492.0,64491.0,0.1252454]
[1719123788727,0.64332048,64492.0,64491.0,0.1252454]
[1719123791819,0.63374929,64492.0,64491.0,0.1252454]
[1719123792039,0.64341324,64492.0,64491.0,0.1252454]
[1719123794807,0.64343407,64492.0,64491.0,0.1252454]
[1719123795175,0.16653597,64492.0,64491.0,0.1252454]
[1719123795594,0.16653597,64492.0,64491.0,0.13611463]
[1719123796065,0.47665097,64492.0,64491.0,0.13611463]
[1719123796190,0.47665097,64492.0,64491.0,0.1252454]
[1719123797875,0.42801099,64492.0,64491.0,0.1252454]
[1719123798082,0.47682868,64492.0,64491.0,0.1252454]
[1719123799549,0.57682868,64492.0,64491.0,0.1252454]
[1719123799811,0.60971684,64492.0,64491.0,0.1252454]
[1719123800267,0.60971684,64492.0,64491.0,0.1901454]
[1719123801185,0.60974597,64492.0,64491.0,0.1901454]
[1719123801411,0.60995344,64492.0,64491.0,0.1901454]
[1719123804219,0.61002188,64492.0,64491.0,0.1901454]
[1719123807277,0.60989017,64492.0,64491.0,0.1901454]
[1719123810270,0.60972594,64492.0,64491.0,0.1901454]
[1719123811975,0.60979186,64492.0,64491.0,0.1901454]
[1719123813445,0.60988361,64492.0,64491.0,0.1901454]
[1719123816445,0.609867,64492.0,64491.0,0.1901454]
[1719123819673,0.60983583,64492.0,64491.0,0.1901454]
[1719123819871,0.56089915,64492.0,64491.0,0.1901454]
[1719123820083,0.60984364,64492.0,64491.0,0.1901454]
[1719123822640,0.60016389,64492.0,64491.0,0.1901454]
[1719123822883,0.60982788,64492.0,64491.0,0.1901454]
[1719123825811,0.60982756,64492.0,64491.0,0.1901454]
[1719123826674,0.91994256,64492.0,64491.0,0.1901454]
[1719123828717,0.91994582,64492.0,64491.0,0.1901454]
[1719123829127,0.87101415,64492.0,64491.0,0.1901454]
[1719123829327,0.91995377,64492.0,64491.0,0.1901454]
[1719123831642,0.87101415,64492.0,64491.0,0.1901454]
[1719123831832,0.91994605,64492.0,64491.0,0.1901454]
[1719123834731,0.91994605,64492.0,64491.0,0.173355]
[1719123834936,0.91989687,64492.0,64491.0,0.1901454]
[1719123836214,0.91989687,64492.0,64491.0,0.1252454]
[1719123838100,0.9102019,64492.0,64491.0,0.1252454]
[1719123838331,0.91986585,64492.0,64491.0,0.1252454]
[1719123839300,0.91986585,64492.0,64491.0,0.108455]
[1719123839519,0.91986585,64492.0,64491.0,0.1252454]
[1719123840938,0.91985472,64492.0,64491.0,0.1252454]
[1719123843595,0.91985261,64492.0,64491.0,0.1252454]
[1719123845498,0.91985261,64492.0,64491.0,0.108455]
[1719123846562,0.87101415,64492.0,64491.0,0.108455]
[1719123846770,0.91987103,64492.0,64491.0,0.108455]
[1719123846970,0.87101415,64492.0,64491.0,0.108455]
[1719123847192,0.91987103,64492.0,64491.0,0.108455]
[1719123847429,0.91987103,64492.0,64491.0,0.1252454]
[1719123848279,0.91986947,64492.0,64491.0,0.1252454]
[1719123849874,0.91987249,64492.0,64491.0,0.108455]
[1719123851618,0.91987249,64492.0,64491.0,0.1252454]
[1719123852769,0.87101415,64492.0,64491.0,0.1252454]
[1719123852972,0.91983524,64492.0,64491.0,0.1252454]
[1719123854626,0.91983524,64492.0,64491.0,0.108455]
[1719123855974,0.91983481,64492.0,64491.0,0.1252454]
[1719123856210,0.88067811,64492.0,64491.0,0.1252454]
[1719123856406,0.91017085,64492.0,64491.0,0.1252454]
[1719123856631,0.91983481,64492.0,64491.0,0.1252454]
[1719123857432,0.87101415,64492.0,64491.0,0.1252454]
[1719123857625,0.91981254,64492.0,64491.0,0.1252454]
[1719123859020,0.91985415,64492.0,64491.0,0.1252454]
[1719123861908,0.87101415,64492.0,64491.0,0.1252454]
[1719123862111,0.91988495,64492.0,64491.0,0.1252454]
[1719123863490,0.61789785,64492.0,64491.0,0.1252454]
[1719123865088,0.61790562,64492.0,64491.0,0.1252454]
[1719123865560,0.56902705,64492.0,64491.0,0.1252454]
[1719123865699,0.6178916,64492.0,64491.0,0.1252454]
[1719123866849,0.61790345,64492.0,64491.0,0.1252454]
[1719123869181,0.61790916,64492.0,64491.0,0.1252454]
[1719123871197,0.56902705,64492.0,64491.0,0.1252454]
[1719123871405,0.61801614,64492.0,64491.0,0.1252454]
[1719123874222,0.56902705,64492.0,64491.0,0.1252454]
[1719123874418,0.6180549,64492.0,64491.0,0.1252454]
[1719123874630,0.56902705,64492.0,64491.0,0.1252454]
[1719123874820,0.61808722,64492.0,64491.0,0.1252454]
[1719123875934,0.61820057,64492.0,64491.0,0.1252454]
[1719123877358,0.61820354,64492.0,64491.0,0.1252454]
[1719123882817,0.61905354,64492.0,64491.0,0.1252454]
[1719123883548,0.61905268,64492.0,64491.0,0.1252454]
[1719123885171,0.61905294,64492.0,64491.0,0.1252454]
[1719123886656,0.61905188,64492.0,64491.0,0.1252454]
[1719123888654,0.61905084,64492.0,64491.0,0.1252454]
[1719123889775,0.61904911,64492.0,64491.0,0.1252454]
[1719123892820,0.56987705,64492.0,64491.0,0.1252454]
[1719123893026,0.61904363,64492.0,64491.0,0.0459454]
[1719123893792,0.92915863,64492.0,64491.0,0.029155]
[1719123894388,1.07235863,64492.0,64491.0,0.029155]
[1719123894696,1.07235863,64492.0,64491.0,0.0459454]
[1719123894898,0.92915863,64492.0,64491.0,0.0459454]
[1719123895406,0.92915863,64492.0,64491.0,0.029155]
[1719123896040,0.92910285,64492.0,64491.0,0.029155]
[1719123898250,0.87999205,64492.0,64491.0,0.029155]
[1719123898433,0.928981,64492.0,64491.0,0.029155]
[1719123899042,0.91931686,64492.0,64491.0,0.029155]
[1719123899241,0.92898082,64492.0,64491.0,0.029155]
[1719123901375,0.87999205,64492.0,64491.0,0.029155]
[1719123901557,0.92900713,64492.0,64491.0,0.029155]
[1719123901752,0.87999205,64492.0,64491.0,0.029155]
[1719123901952,0.92900713,64492.0,64491.0,0.029155]
[1719123903103,0.92895513,64492.0,64491.0,0.029155]
[1719123907636,0.87999205,64492.0,64491.0,0.029155]
[1719123907858,1.00856308,64492.0,64491.0,0.029155]
[1719123908014,0.92886308,64492.0,64491.0,0.029155]
[1719123910825,0.92887392,64492.0,64491.0,0.029155]
[1719123911284,0.92882978,64492.0,64491.0,0.029155]
[1719123912429,0.92911037,64492.0,64491.0,0.0459454]
[1719123913395,0.92911037,64492.0,64491.0,0.029155]
[1719123913872,0.92931819,64492.0,64491.0,0.029155]
[1719123917060,0.92926207,64492.0,64491.0,0.029155]
[1719123919949,0.92937177,64492.0,64491.0,0.029155]
[1719123920352,0.9293785,64492.0,64491.0,0.029155]
[1719123921528,0.92934392,64492.0,64491.0,0.029155]
[1719123922899,0.87999205,64492.0,64491.0,0.029155]
[1719123923103,0.92936409,64492.0,64491.0,0.029155]
[1719123926113,0.92932045,64492.0,64491.0,0.029155]
[1719123929131,0.8896562,64492.0,64491.0,0.029155]
[1719123929342,0.92929791,64492.0,64491.0,0.029155]
[1719123929520,0.8896562,64492.0,64491.0,0.029155]
[1719123929723,0.92929791,64492.0,64491.0,0.029155]
[1719123930821,0.92929094,64492.0,64491.0,0.029155]
[1719123932302,0.92929068,64492.0,64491.0,0.029155]
[1719123934636,0.63888402,64492.0,64491.0,0.029155]
[1719123934926,0.79394102,64492.0,64491.0,0.029155]
[1719123935381,0.79392204,64492.0,64491.0,0.029155]
[1719123936985,0.89392204,64492.0,64491.0,0.029155]
[1719123938169,0.88209918,64492.0,64491.0,0.029155]
[1719123938335,0.89176333,64492.0,64491.0,0.029155]
[1719123938533,0.88209918,64492.0,64491.0,0.029155]
[1719123938739,0.93123362,64492.0,64491.0,0.029155]
[1719123939927,0.88209918,64492.0,64491.0,0.029155]
[1719123940123,0.93124846,64492.0,64491.0,0.029155]
[1719123941416,0.89176333,64492.0,64491.0,0.029155]
[1719123941620,0.93123397,64492.0,64491.0,0.029155]
[1719123944550,0.93123184,64492.0,64491.0,0.029155]
[1719123947498,0.88209918,64492.0,64491.0,0.029155]
[1719123947697,0.93117675,64492.0,64491.0,0.029155]
[1719123948215,0.93117674,64492.0,64491.0,0.029155]
[1719123949174,0.9311298,64492.0,64491.0,0.029155]
[1719123950609,0.93086894,64492.0,64491.0,0.029155]
[1719123953682,0.88209918,64492.0,64491.0,0.029155]
[1719123953880,0.93062762,64492.0,64491.0,0.029155]
[1719123956767,0.93058349,64492.0,64491.0,0.029155]
[1719123956923,0.93058199,64492.0,64491.0,0.029155]
[1719123957124,0.88209918,64492.0,64491.0,0.029155]
[1719123957358,0.93058199,64492.0,64491.0,0.029155]
[1719123958551,0.93057824,64492.0,64491.0,0.029155]
[1719123960039,0.9296284,64492.0,64491.0,0.029155]
[1719123962324,0.92976058,64492.0,64491.0,0.029155]
[1719123965398,0.92977456,64492.0,64491.0,0.029155]
[1719123966995,0.9298052,64492.0,64491.0,0.029155]
[1719123968642,0.92980547,64492.0,64491.0,0.029155]
[1719123971635,0.92980715,64492.0,64491.0,0.029155]
[1719123974886,0.92979161,64492.0,64491.0,0.029155]
[1719123975247,0.92979527,64492.0,64491.0,0.029155]
[1719123977923,0.92978266,64492.0,64491.0,0.029155]
[1719123980973,0.9296967,64492.0,64491.0,0.029155]
[1719123984104,0.92963079,64492.0,64491.0,0.029155]
[1719123985671,0.92963734,64492.0,64491.0,0.029155]
[1719123987129,0.92912241,64492.0,64491.0,0.029155]
[1719123987327,0.92910874,64492.0,64491.0,0.029155]
[1719123987698,0.92910874,64492.0,64491.0,0.0459454]
[1719123988847,0.92910874,64492.0,64491.0,0.029155]
[1719123990108,0.92910806,64492.0,64491.0,0.029155]
[1719123993323,0.89176334,64492.0,64491.0,0.029155]
[1719123993527,0.92912665,64492.0,64491.0,0.029155]
[1719123996669,0.92912665,64492.0,64491.0,0.0459454]
[1719123997074,0.92912665,64492.0,64491.0,0.029155]
[1719123997371,0.92912665,64492.0,64491.0,0.0459454]
[1719123998354,0.61901165,64492.0,64491.0,0.0459454]
[1719123998779,0.61901165,64492.0,64491.0,0.029155]
[1719123999163,0.61901165,64492.0,64491.0,0.0459454]